fUST/lending_fUST_20260626
["ID","MTS","AMOUNT","RATE_DAILY","PERIOD"]
[426476070,1782436240000,-156.19979351,0.00035145,2]
[426476075,1782436240000,-183.62718316,0.00035145,2]
[426476074,1782436240000,-232.78313647,0.00035145,2]
[426476071,1782436240000,-159.80428818,0.00035145,2]
[426476073,1782436240000,-189.15227014,0.00035145,2]
[426476091,1782436240000,-600.9290279,0.00035415,2]
[426476120,1782436240000,-1000.0,0.00035636,2]
[426476140,1782436240000,-1472.76777788,0.00038896,2]
[426476112,1782436240000,-206.20921295,0.00035415,2]
[426476111,1782436240000,-541.87408723,0.00035415,2]
[426476148,1782436240000,-1000.0,0.00040443,120]
[426476149,1782436240000,-1000.0,0.00040443,120]
[426476154,1782436240000,-710662.2766,0.00040444,30]
[426476152,1782436240000,-640.58071433,0.00040443,30]
[426476153,1782436240000,-504.32388091,0.00040443,2]
[426476147,1782436240000,-1000.0,0.00040443,120]
[426476151,1782436240000,-500.0,0.00040443,30]
[426476150,1782436240000,-1000.0,0.00040443,120]
[426476157,1782436240000,-915.08686599,0.00042638,2]
[426476166,1782436240000,-1839.0,0.00047166,2]
[426476164,1782436240000,-172.77181544,0.000449,2]
[426476161,1782436240000,-445.0,0.0004461,2]
[426476156,1782436240000,-3192.85207878,0.00041723,28]
[426476162,1782436240000,-370.687,0.0004461,2]
[426476163,1782436240000,-187.313,0.0004461,2]
[426476159,1782436240000,-1843.0,0.00044166,2]
[426476160,1782436240000,-1420.0,0.00044166,2]
[426476168,1782436240000,-661.0,0.00047166,2]
[426476167,1782436240000,-1416.0,0.00047166,2]
[426476158,1782436240000,-2213.0,0.00044166,2]
[426476170,1782436240000,-445.0,0.0004761,2]
[426476169,1782436240000,-475.68,0.0004718,120]
[426476172,1782436240000,-327923.90807465,0.00048,2]
[426476171,1782436240000,-248.34065938,0.0004774,120]
[426476173,1782436240000,-3715.72626716,0.00048,2]
[426476174,1782436240000,-16269.72023898,0.00048,2]
[426476175,1782436240000,-497.92914224,0.00048,2]
[426476165,1782436240000,-172.77181543,0.000449,2]
[426476146,1782436240000,-1000.0,0.00040443,120]
[426476145,1782436240000,-1000.0,0.00040443,120]
[426476155,1782436240000,-1029.3319038,0.00041424,2]
[426476117,1782436240000,-300.0,0.00035415,2]
[426476118,1782436240000,-796.56650892,0.00035532,7]
[426476113,1782436240000,-345.19148707,0.00035415,2]
[426476114,1782436240000,-342.57561905,0.00035415,2]
[426476115,1782436240000,-308.04636883,0.00035415,2]
[426476116,1782436240000,-168.18391434,0.00035415,2]
[426476122,1782436240000,-210.0,0.00035636,2]
[426476127,1782436240000,-1104.57583341,0.00036486,2]
[426476124,1782436240000,-920.47986118,0.00035843,2]
[426476129,1782436240000,-1000.0,0.00037161,120]
[426476130,1782436240000,-1000.0,0.00037161,120]
[426476144,1782436240000,-1000.0,0.00040443,120]
[426476123,1782436240000,-751.16128488,0.00035843,2]
[426476126,1782436240000,-901.39354185,0.00036486,2]
[426476133,1782436240000,-500.0,0.00037161,30]
[426476132,1782436240000,-1000.0,0.00037161,120]
[426476134,1782436240000,-500.0,0.00037161,2]
[426476131,1782436240000,-1000.0,0.00037161,120]
[426476128,1782436240000,-1000.0,0.00037161,120]
[426476136,1782436240000,-1051.62579883,0.0003745,2]
[426476135,1782436240000,-1029.3319038,0.00037227,2]
[426476137,1782436240000,-1288.67180565,0.0003745,2]
[426476138,1782436240000,-213.18,0.00038134,2]
[426476139,1782436240000,-1201.8580558,0.00038896,2]
[426476125,1782436240000,-171.28780953,0.00035843,2]
[426476143,1782436240000,-720.59,0.00040274,30]
[426476141,1782436240000,-1029.3319038,0.00039325,2]
[426476142,1782436240000,-4991.784,0.000399,120]
[426476187,1782436241000,-500.0,0.00049315,120]
[426476177,1782436241000,-208977.7514639,0.00048,2]
[426476184,1782436241000,-151.0,0.00048,120]
[426476179,1782436241000,-343.001564,0.00048,120]
[426476176,1782436241000,-4318.1455279,0.00048,2]
[426476178,1782436241000,-343.001564,0.00048,120]
[426476185,1782436241000,-151.0,0.00048,120]
[426476181,1782436241000,-343.001564,0.00048,120]
[426476186,1782436241000,-1000.0,0.00049315,2]
[426476191,1782436241000,-270.2199478,0.0005061,120]
[426476180,1782436241000,-343.001564,0.00048,120]
[426476182,1782436241000,-151.0,0.00048,120]
[426476183,1782436241000,-151.0,0.00048,120]
[426476189,1782436241000,-386.39507341,0.0005055,120]
[426476190,1782436241000,-89.28492659,0.0005055,120]
[426476188,1782436241000,-3000.0,0.00049315,120]
[426476210,1782436243000,-174.7800522,0.0005061,120]
[426476212,1782436243000,-1182.0698983,0.00052054,120]
[426476211,1782436243000,-500.0,0.00052054,120]
[426476230,1782436247000,-165.11847034,0.00053822,28]
[426476229,1782436247000,-836.86020013,0.00052054,120]
[426476228,1782436247000,-981.06990157,0.00052054,120]
[426476254,1782436728000,20985.34440387,0.000119,120]
[426476256,1782436784000,417.15472785,0.00025,30]
[426476322,1782437427000,162.16746485,0.00028635,120]
[426476356,1782437432000,-868.33,0.000237,2]
[426476354,1782437432000,-181.05173027,0.00023463,13]
[426476352,1782437432000,-285.39754052,0.0002291,14]
[426476358,1782437432000,-1061.7589,0.000254,5]
[426476363,1782437432000,-180.56457481,0.000305,120]
[426476365,1782437432000,-853.5938,0.000306,5]
[426476361,1782437432000,-2237.6939,0.000289,3]
[426476368,1782437432000,-45.29737206,0.000306,2]
[426476515,1782437444000,360.0,0.0002,120]
[426476666,1782437685000,257.08656187,0.0002,120]
[426476687,1782438202000,548.49,0.00028635,120]
[426476757,1782438632000,-274.24289103,0.00021869,13]
[426476759,1782438632000,-972.3684141,0.00021869,13]
[426476762,1782438632000,-1071.458,0.00021869,13]
[426476768,1782438632000,-247.61611725,0.0002209,13]
[426476770,1782438632000,-613.65797927,0.00022313,13]
[426476766,1782438632000,-379.51139376,0.00021869,13]
[426476795,1782438644000,-301.87154325,0.00022313,13]
[426476833,1782439034000,1535.9408726,0.00028635,120]
[426476835,1782439047000,1225.09105162,0.00028635,60]
[426476836,1782439048000,926.0941492,0.00028635,30]
[426476841,1782439066000,201.45764489,0.00028635,30]
[426477250,1782439831000,-2086.36778518,0.00018,2]
[426477244,1782439831000,-208.78508219,0.00015796,13]
[426477240,1782439831000,-1174.21379213,0.00015638,13]
[426477242,1782439831000,-67.23216362,0.00015638,13]
[426477248,1782439831000,-2974.0,0.00017,2]
[426477246,1782439831000,-1046.03826901,0.00015956,13]
[426477260,1782439831000,-223.00281499,0.00022962,7]
[426477254,1782439831000,-223.00281499,0.00021869,7]
[426477258,1782439831000,-223.00281499,0.00022306,7]
[426477256,1782439831000,-200.09343607,0.0002209,2]
[426477262,1782439831000,-12.59865558,0.00023619,7]
[426477252,1782439831000,-1077.06206042,0.00018,2]
[426477428,1782439841000,-3000.0,0.000301,2]
[426477402,1782439841000,-478.87916663,0.00029919,2]
[426477392,1782439841000,-500.0,0.00029919,2]
[426477404,1782439841000,-3000.0,0.0003,2]
[426477407,1782439841000,-187.57173673,0.0003,24]
[426477409,1782439841000,-3000.0,0.0003001,2]
[426477411,1782439841000,-3000.0,0.0003002,2]
[426477394,1782439841000,-500.0,0.00029919,2]
[426477400,1782439841000,-500.0,0.00029919,2]
[426477413,1782439841000,-3000.0,0.0003003,2]
[426477388,1782439841000,-500.0,0.00029919,2]
[426477398,1782439841000,-500.0,0.00029919,2]
[426477417,1782439841000,-3000.0,0.0003005,2]
[426477415,1782439841000,-3000.0,0.0003004,2]
[426477420,1782439841000,-3000.0,0.0003006,2]
[426477422,1782439841000,-3000.0,0.0003007,2]
[426477426,1782439841000,-3000.0,0.0003009,2]
[426477396,1782439841000,-500.0,0.00029919,2]
[426477387,1782439841000,-500.0,0.00029919,2]
[426477379,1782439841000,-306.98,0.00028641,2]
[426477384,1782439841000,-500.0,0.00029919,2]
[426477364,1782439841000,-305.02369624,0.00025596,7]
[426477359,1782439841000,-507.7089253,0.0002482,2]
[426477361,1782439841000,-305.02369624,0.00024885,7]
[426477362,1782439841000,-228.2705107,0.0002534,2]
[426477352,1782439841000,-210.40415941,0.00023619,7]
[426477354,1782439841000,-305.02369624,0.000237,7]
[426477357,1782439841000,-223.00281503,0.00024493,7]
[426477355,1782439841000,-305.02369624,0.00024174,7]
[426477368,1782439841000,-178.72174689,0.000272,3]
[426477371,1782439841000,-297.44182968,0.000272,2]
[426477369,1782439841000,-153.14934748,0.000272,2]
[426477366,1782439841000,-305.02369625,0.00026544,7]
[426477373,1782439841000,-283.843896,0.00027378,2]
[426477375,1782439841000,-283.843896,0.00028531,2]
[426477377,1782439841000,-900.8987225,0.00028641,2]
[426477383,1782439841000,-608.29601462,0.00029919,2]
[426477381,1782439841000,-283.843896,0.00029683,2]
[426477390,1782439841000,-264.17784946,0.00029919,2]
[426477430,1782439841000,-5937.209398,0.0003011,2]
[426477424,1782439841000,-3000.0,0.0003008,2]
[426477437,1782439841000,-283.843896,0.00031988,2]
[426477489,1782439841000,-972.78,0.00047431,2]
[426477481,1782439841000,-257.41202272,0.0004277,2]
[426477485,1782439841000,-1497.21191489,0.000439,120]
[426477483,1782439841000,-463.34164089,0.0004277,2]
[426477491,1782439841000,-1429.902,0.00047431,2]
[426477487,1782439841000,-221.162727,0.00047078,30]
[426477493,1782439841000,-1857.742,0.00047431,2]
[426477495,1782439841000,-746.687,0.00047431,2]
[426477497,1782439841000,-188.173,0.00047431,2]
[426477499,1782439841000,-165.13,0.00047582,14]
[426477501,1782439841000,-361.00196257,0.00047637,2]
[426477503,1782439841000,-213.27,0.0004774,90]
[426477508,1782439841000,-203.82131886,0.00048,2]
[426477510,1782439841000,-377.6,0.00048,120]
[426477512,1782439841000,-2594.74285553,0.00048249,114]
[426477507,1782439841000,-173.1396541,0.000479,2]
[426477434,1782439841000,-283.843896,0.00030836,2]
[426477479,1782439841000,-196.12302072,0.0004267,2]
[426477477,1782439841000,-1497.21191489,0.000426,120]
[426477505,1782439841000,-299.50280593,0.0004774,120]
[426477475,1782439841000,-158.09,0.00042195,10]
[426477432,1782439841000,-1267.49622794,0.000306,2]
[426477469,1782439841000,-1497.21191489,0.000402,120]
[426477441,1782439841000,-283.843896,0.00033141,2]
[426477439,1782439841000,-457.02,0.000324,30]
[426477449,1782439841000,-268.83667036,0.00035401,2]
[426477445,1782439841000,-279.15614481,0.00035,120]
[426477443,1782439841000,-236.29540249,0.00034973,2]
[426477463,1782439841000,-500.0,0.00038999,15]
[426477451,1782439841000,-371.96030347,0.00035401,2]
[426477447,1782439841000,-382.65221659,0.00035401,2]
[426477455,1782439841000,-366.50560107,0.00035401,2]
[426477459,1782439841000,-325.42199503,0.00035401,2]
[426477465,1782439841000,-392.30954397,0.00038999,15]
[426477457,1782439841000,-325.62855248,0.00035401,2]
[426477473,1782439841000,-1497.21191489,0.000414,120]
[426477461,1782439841000,-220.0,0.00035415,2]
[426477467,1782439841000,-1497.21191489,0.00039,120]
[426477453,1782439841000,-472.59080499,0.00035401,2]
[426477471,1782439841000,-8580.9982,0.00040444,30]
[426477601,1782439842000,-151.5,0.00053973,66]
[426477600,1782439842000,-252.43982774,0.00053973,120]
[426477593,1782439842000,-151.5,0.00053973,120]
[426477598,1782439842000,-500.0,0.00053973,120]
[426477594,1782439842000,-500.0,0.00053973,120]
[426477583,1782439842000,-151.0,0.00053552,28]
[426477581,1782439842000,-151.0,0.00053552,28]
[426477585,1782439842000,-153.42444338,0.00053552,28]
[426477589,1782439842000,-500.0,0.00053973,120]
[426477597,1782439842000,-209.71611797,0.00053973,120]
[426477579,1782439842000,-151.0,0.00053552,28]
[426477591,1782439842000,-500.0,0.00053973,120]
[426477613,1782439842000,-162.35715955,0.00053973,120]
[426477628,1782439842000,-500.0,0.00054793,120]
[426477614,1782439842000,-500.0,0.00053973,120]
[426477609,1782439842000,-500.0,0.00053973,120]
[426477607,1782439842000,-500.0,0.00053973,120]
[426477603,1782439842000,-500.0,0.00053973,120]
[426477605,1782439842000,-176.39168353,0.00053973,66]
[426477616,1782439842000,-500.0,0.00053973,120]
[426477618,1782439842000,-500.0,0.00053973,120]
[426477633,1782439842000,-3000.0,0.00054794,120]
[426477622,1782439842000,-500.0,0.00053973,120]
[426477626,1782439842000,-152.4856636,0.00053973,120]
[426477639,1782439842000,-304.598089,0.00056383,120]
[426477624,1782439842000,-582.7091619,0.00053973,120]
[426477578,1782439842000,-151.0,0.00053552,28]
[426477611,1782439842000,-500.0,0.00053973,120]
[426477587,1782439842000,-304.59809,0.00053698,21]
[426477534,1782439842000,-3000.0,0.0005101,85]
[426477574,1782439842000,-151.0,0.00053552,28]
[426477521,1782439842000,-19997.180612,0.000488,120]
[426477523,1782439842000,-815.67030587,0.00049215,21]
[426477525,1782439842000,-500.0,0.00049315,120]
[426477527,1782439842000,-500.0,0.00049315,120]
[426477538,1782439842000,-3000.0,0.0005103,85]
[426477536,1782439842000,-3000.0,0.0005102,85]
[426477540,1782439842000,-3000.0,0.0005104,85]
[426477529,1782439842000,-3000.0,0.00049315,120]
[426477532,1782439842000,-3000.0,0.00051,85]
[426477530,1782439842000,-3000.0,0.00051,120]
[426477519,1782439842000,-4701.31921768,0.00048249,114]
[426477544,1782439842000,-3000.0,0.0005106,85]
[426477548,1782439842000,-213.27,0.0005115,120]
[426477550,1782439842000,-290.34759809,0.0005115,120]
[426477546,1782439842000,-5623.499658,0.0005107,85]
[426477562,1782439842000,-3000.0,0.00052054,120]
[426477542,1782439842000,-3000.0,0.0005105,85]
[426477560,1782439842000,-153.67632658,0.00052054,120]
[426477554,1782439842000,-492.10725338,0.00052053,14]
[426477566,1782439842000,-151.0,0.00053552,28]
[426477558,1782439842000,-181.94023872,0.00052054,120]
[426477556,1782439842000,-500.0,0.00052053,120]
[426477552,1782439842000,-3000.0,0.00052,120]
[426477564,1782439842000,-422.0,0.00052055,30]
[426477572,1782439842000,-151.0,0.00053552,28]
[426477570,1782439842000,-151.0,0.00053552,28]
[426477576,1782439842000,-151.0,0.00053552,28]
[426477568,1782439842000,-151.0,0.00053552,28]
[426477645,1782439842000,-406.94045435,0.00057397,2]
[426477620,1782439842000,-500.0,0.00053973,120]
[426477648,1782439842000,-500.0,0.00057533,120]
[426477712,1782439842000,-3000.0,0.0006903,120]
[426477714,1782439842000,-3974.099794,0.0006904,120]
[426477710,1782439842000,-3000.0,0.0006902,120]
[426477715,1782439842000,-3000.0,0.000695,120]
[426477721,1782439842000,-6976.4267125,0.00073943,2]
[426477719,1782439842000,-3000.0,0.000725,120]
[426477723,1782439842000,-350.0,0.00073972,2]
[426477725,1782439842000,-180.0,0.00073972,2]
[426477727,1782439842000,-2381.82630798,0.00078181,28]
[426477729,1782439842000,-3000.0,0.000785,120]
[426477733,1782439842000,-1774.899977,0.0008,120]
[426477735,1782439842000,-6976.4267125,0.00081281,2]
[426477738,1782439842000,-151.0,0.000815,120]
[426477731,1782439842000,-338.83901644,0.00078679,2]
[426477740,1782439842000,-151.0,0.000815,120]
[426477736,1782439842000,-3000.0,0.000815,120]
[426477742,1782439842000,-3000.0,0.000845,120]
[426477744,1782439842000,-151.0,0.00085724,120]
[426477758,1782439842000,-251.069755,0.00085724,120]
[426477747,1782439842000,-274.915012,0.00085724,120]
[426477757,1782439842000,-251.069755,0.00085724,120]
[426477760,1782439842000,-251.069755,0.00085724,120]
[426477753,1782439842000,-274.915012,0.00085724,120]
[426477746,1782439842000,-153.771557,0.00085724,120]
[426477751,1782439842000,-274.915012,0.00085724,120]
[426477755,1782439842000,-251.069755,0.00085724,120]
[426477643,1782439842000,-200.0,0.0005704,30]
[426477708,1782439842000,-151.0,0.0006901,120]
[426477717,1782439842000,-151.0,0.00070233,120]
[426477749,1782439842000,-274.915012,0.00085724,120]
[426477705,1782439842000,-3000.0,0.0006901,120]
[426477661,1782439842000,-430.81684003,0.00061912,2]
[426477666,1782439842000,-151.0,0.00063511,120]
[426477668,1782439842000,-196.610944,0.00063511,120]
[426477650,1782439842000,-3000.0,0.00057534,120]
[426477652,1782439842000,-500.0,0.00060272,120]
[426477665,1782439842000,-3000.0,0.00063013,120]
[426477656,1782439842000,-239.51,0.00060273,120]
[426477698,1782439842000,-274.915012,0.00069,120]
[426477654,1782439842000,-3000.0,0.00060273,120]
[426477657,1782439842000,-179.9640072,0.00061378,60]
[426477659,1782439842000,-180.41088,0.00061752,30]
[426477672,1782439842000,-675.15698815,0.00065753,120]
[426477680,1782439842000,-151.0,0.00067691,120]
[426477678,1782439842000,-151.0,0.00067691,120]
[426477663,1782439842000,-544.4110003,0.00063012,120]
[426477676,1782439842000,-407.127172,0.0006762,120]
[426477670,1782439842000,-798.0,0.000656,30]
[426477688,1782439842000,-251.069755,0.00068493,120]
[426477684,1782439842000,-8027.31021024,0.00068493,2]
[426477682,1782439842000,-194.547904,0.00067691,120]
[426477691,1782439842000,-251.069755,0.00068493,120]
[426477694,1782439842000,-3000.0,0.00069,120]
[426477692,1782439842000,-251.069755,0.00068493,120]
[426477686,1782439842000,-251.069755,0.00068493,120]
[426477696,1782439842000,-151.0,0.00069,120]
[426477700,1782439842000,-274.915012,0.00069,120]
[426477702,1782439842000,-274.915012,0.00069,120]
[426477704,1782439842000,-274.915012,0.00069,120]
[426477674,1782439842000,-203.563586,0.00065998,120]
[426477762,1782439843000,-4943.64794812,0.00085724,120]
[426477761,1782439843000,-5000.0,0.00085724,120]
[426478026,1782441038000,-3408.60828864,0.00028567,2]
[426478024,1782441038000,-2172.53308138,0.00028567,2]
[426478035,1782441038000,-1559.11842848,0.00028667,2]
[426478016,1782441038000,-166.72821082,0.00016438,2]
[426478033,1782441038000,-745.54508428,0.00028667,2]
[426478022,1782441038000,-488.6423767,0.0002714,2]
[426478018,1782441038000,-159.51239932,0.00017286,7]
[426478030,1782441038000,-2891.05804782,0.00028667,2]
[426478029,1782441038000,-418.24198327,0.00028666,2]
[426478020,1782441038000,-239.268599,0.00018303,7]
[426478095,1782441042000,-1278.7341757,0.00028667,2]
[426478093,1782441042000,-1900.88157152,0.00028667,2]
[426478097,1782441042000,-1309.75175234,0.00028667,2]
[426478136,1782441046000,-3460.0,0.00028667,2]
[426478132,1782441046000,-3460.0,0.00028667,2]
[426478133,1782441046000,-3460.0,0.00028667,2]
[426478129,1782441046000,-871.51407196,0.00028667,2]
[426478130,1782441046000,-3460.0,0.00028667,2]
[426478131,1782441046000,-3460.0,0.00028667,2]
[426478135,1782441046000,-3460.0,0.00028667,2]
[426478134,1782441046000,-3460.0,0.00028667,2]
[426478161,1782441047000,-164.949007,0.00028667,7]
[426478151,1782441047000,-164.949007,0.00028667,7]
[426478149,1782441047000,-151.0,0.00028667,7]
[426478153,1782441047000,-164.949007,0.00028667,7]
[426478157,1782441047000,-164.949007,0.00028667,7]
[426478155,1782441047000,-164.949007,0.00028667,7]
[426478154,1782441047000,-164.949007,0.00028667,7]
[426478152,1782441047000,-164.949007,0.00028667,7]
[426478158,1782441047000,-164.949007,0.00028667,7]
[426478162,1782441047000,-164.949007,0.00028667,7]
[426478164,1782441047000,-151.0,0.00028667,7]
[426478165,1782441047000,-151.0,0.00028667,7]
[426478156,1782441047000,-164.949007,0.00028667,7]
[426478160,1782441047000,-164.949007,0.00028667,7]
[426478146,1782441047000,-75.03456416,0.00028667,30]
[426478159,1782441047000,-164.949007,0.00028667,7]
[426478148,1782441047000,-151.0,0.00028667,7]
[426478147,1782441047000,-2262.6434125,0.00028667,30]
[426478143,1782441047000,-3460.0,0.00028667,2]
[426478142,1782441047000,-3460.0,0.00028667,2]
[426478145,1782441047000,-4850.48592803,0.00028667,30]
[426478144,1782441047000,-5000.0,0.00028667,30]
[426478141,1782441047000,-3460.0,0.00028667,2]
[426478140,1782441047000,-3460.0,0.00028667,2]
[426478139,1782441047000,-3460.0,0.00028667,2]
[426478137,1782441047000,-3460.0,0.00028667,2]
[426478138,1782441047000,-3460.0,0.00028667,2]
[426478163,1782441047000,-151.714311,0.00028667,7]
[426478150,1782441047000,-151.0,0.00028667,7]
[426478167,1782441047000,-151.0,0.00028667,7]
[426478177,1782441047000,-5581.14137,0.00043323,2]
[426478166,1782441047000,-151.0,0.00028667,7]
[426478169,1782441047000,-5581.14137,0.00035945,2]
[426478196,1782441047000,-6009.76,0.00057534,120]
[426478189,1782441047000,-6009.76,0.00054794,120]
[426478187,1782441047000,-5581.14137,0.00050701,2]
[426478186,1782441047000,-600.0,0.0005,120]
[426478185,1782441047000,-151.0,0.00049315,120]
[426478195,1782441047000,-164.949002,0.00055,120]
[426478193,1782441047000,-164.949007,0.00055,120]
[426478194,1782441047000,-164.949007,0.00055,120]
[426478184,1782441047000,-164.949007,0.00049315,120]
[426478192,1782441047000,-164.949007,0.00055,120]
[426478190,1782441047000,-658.0,0.00054795,120]
[426478191,1782441047000,-600.0,0.00055,120]
[426478183,1782441047000,-164.949007,0.00049315,120]
[426478188,1782441047000,-6009.76,0.00052054,120]
[426478182,1782441047000,-164.949007,0.00049315,120]
[426478170,1782441047000,-151.0,0.00035963,7]
[426478168,1782441047000,-274.17765294,0.000332,117]
[426478172,1782441047000,-160.97025099,0.00039,120]
[426478171,1782441047000,-600.0,0.000375,120]
[426478181,1782441047000,-164.949007,0.00049315,120]
[426478178,1782441047000,-600.0,0.00045,120]
[426478176,1782441047000,-160.0,0.00042064,2]
[426478179,1782441047000,-761.29228546,0.00049215,21]
[426478173,1782441047000,-624.61668078,0.00039726,15]
[426478180,1782441047000,-6009.76,0.00049315,120]
[426478197,1782441047000,-4753.73057794,0.00058079,2]
[426478175,1782441047000,-160.0,0.00042064,2]
[426478174,1782441047000,-600.0,0.0004,120]
[426478228,1782441652000,1458.0,0.0002867,30]
[426478316,1782442232000,-1310.71394453,0.00046855,2]
[426478301,1782442232000,-5000.0,0.00019602,13]
[426478305,1782442232000,-156.9949643,0.0002,2]
[426478314,1782442232000,-2873.3117642,0.00045005,2]
[426478312,1782442232000,-380.18677306,0.00035516,2]
[426478307,1782442232000,-307.53942562,0.00035516,2]
[426478310,1782442232000,-155.92937278,0.00035516,2]
[426478309,1782442232000,-366.75299353,0.00035516,2]
[426478303,1782442232000,-4029.16961007,0.000198,13]
[426478444,1782442238000,-500.0,0.00043254,31]
[426478435,1782442238000,-89.67768499,0.00043254,31]
[426478432,1782442238000,-52.67060226,0.00043254,31]
[426478434,1782442238000,-500.0,0.00043254,31]
[426478436,1782442238000,-410.32231501,0.00043254,31]
[426478437,1782442238000,-289.06661718,0.00043254,31]
[426478438,1782442238000,-500.0,0.00043254,31]
[426478442,1782442238000,-500.0,0.00043254,31]
[426478441,1782442238000,-500.0,0.00043254,31]
[426478443,1782442238000,-314.39838979,0.00043254,31]
[426478430,1782442238000,-600.56061123,0.00043254,31]
[426478440,1782442238000,-500.0,0.00043254,31]
[426478433,1782442238000,-447.32939774,0.00043254,31]
[426478439,1782442238000,-500.0,0.00043254,31]
[426478445,1782442238000,-500.0,0.00043254,31]
[426478455,1782442238000,-628.47496203,0.00043254,31]
[426478446,1782442238000,-500.0,0.00043254,31]
[426478449,1782442238000,-81.41337133,0.00043254,31]
[426478458,1782442238000,-500.0,0.00043254,31]
[426478459,1782442238000,-500.0,0.00043254,31]
[426478456,1782442238000,-418.49958398,0.00043254,31]
[426478457,1782442238000,-81.50041602,0.00043254,31]
[426478451,1782442238000,-461.06121061,0.00043254,31]
[426478454,1782442238000,-500.0,0.00043254,31]
[426478453,1782442238000,-500.0,0.00043254,31]
[426478450,1782442238000,-500.0,0.00043254,31]
[426478452,1782442238000,-38.93878939,0.00043254,31]
[426478460,1782442238000,-500.0,0.00043254,31]
[426478462,1782442238000,-435.67881015,0.00043254,31]
[426478447,1782442238000,-193.11040038,0.00043254,31]
[426478448,1782442238000,-225.47622829,0.00043254,31]
[426478461,1782442238000,-500.0,0.00043254,31]
[426478476,1782442240000,-200.68913485,0.00043254,31]
[426478477,1782442240000,-500.0,0.00043254,31]
[426478475,1782442240000,-299.31086515,0.00043254,31]
[426478478,1782442240000,-32.90248063,0.00046855,2]
[426478479,1782442240000,-1526.16546803,0.00046855,2]
[426478474,1782442240000,-64.32118985,0.00043254,31]
[426478502,1782442243000,-188.173,0.00051938,120]
[426478497,1782442243000,-2873.3117642,0.00048704,2]
[426478496,1782442243000,-2084.09801954,0.00048604,28]
[426478494,1782442243000,-1996.13931087,0.00046855,2]
[426478498,1782442243000,-689.3567807,0.00048955,2]
[426478495,1782442243000,-300.0,0.00046855,2]
[426478499,1782442243000,-500.0,0.00049315,120]
[426478500,1782442243000,-2873.3117642,0.00050553,2]
[426478508,1782442243000,-2873.3117642,0.00056101,2]
[426478501,1782442243000,-185.753,0.00051938,2]
[426478504,1782442243000,-2873.3117642,0.00052403,2]
[426478506,1782442243000,-2873.3117642,0.00054252,2]
[426478505,1782442243000,-1473.8991,0.00053,120]
[426478509,1782442243000,-1732.79329421,0.00057,120]
[426478507,1782442243000,-706.0,0.00054795,120]
[426478510,1782442243000,-1029.78697456,0.00057,120]
[426478503,1782442243000,-626.0,0.00052054,120]
[426478518,1782442247000,-7518.69,0.00052054,120]
[426478523,1782442247000,-2084.09801948,0.00057995,28]
[426478519,1782442247000,-7518.69,0.00054136,120]
[426478520,1782442247000,-7518.69,0.00056302,120]
[426478522,1782442247000,-2873.3117642,0.00057951,2]
[426478525,1782442247000,-1257.029997,0.00058554,120]
[426478524,1782442247000,-2334.37686871,0.00058554,120]
[426478521,1782442247000,-1246.08687223,0.00057,120]
[426478545,1782442645000,608.0,0.0002867,30]
[426478572,1782443039000,-923.11470488,0.00011643,13]
[426478614,1782443432000,-499.0,0.00034677,120]
[426478623,1782443432000,-523.36186112,0.00049315,120]
[426478620,1782443432000,-392.6547545,0.00039328,2]
[426478625,1782443432000,-500.0,0.00051172,120]
[426478618,1782443432000,-499.0,0.00036677,120]
[426478619,1782443432000,-508.55467158,0.00037677,120]
[426478621,1782443432000,-202.6308659,0.00043871,2]
[426478616,1782443432000,-396.64266492,0.00035526,2]
[426478617,1782443432000,-499.0,0.00035677,120]